fUSD/lending_fUSD_20260329
["ID","MTS","AMOUNT","RATE_DAILY","PERIOD"]
[419022387,1774769445995,-151.0,0.00013699,2]
[419022388,1774769446004,-151.0,0.00013699,2]
[419022389,1774769446015,-151.0,0.00013699,2]
[419022390,1774769446025,-151.0,0.00013699,2]
[419022392,1774769446111,-151.0,0.00013699,2]
[419022393,1774769446123,-151.0,0.00013699,2]
[419022394,1774769446133,-151.0,0.00013699,2]
[419022395,1774769446142,-151.0,0.00013699,2]
[419022396,1774769446152,-151.0,0.00013699,2]
[419022398,1774769446162,-151.36681,0.00013699,2]
[419022399,1774769446172,-280.754075,0.00013699,2]
[419022400,1774769446182,-340.955907,0.00013699,2]
[419022401,1774769446191,-340.955907,0.00013699,2]
[419022402,1774769446201,-340.955907,0.00013699,2]
[419022403,1774769446212,-340.955907,0.00013699,2]
[419022404,1774769446221,-340.955907,0.00013699,2]
[419022405,1774769446231,-340.955907,0.00013699,2]
[419022406,1774769446240,-340.955907,0.00013699,2]
[419022407,1774769446249,-340.955907,0.00013699,2]
[419022408,1774769446259,-340.955907,0.00013699,2]
[419022409,1774769446268,-340.955907,0.00013699,2]
[419022410,1774769446278,-340.955907,0.00013699,2]
[419022411,1774769446287,-340.955907,0.00013699,2]
[419022412,1774769446297,-340.955907,0.00013699,2]
[419022413,1774769446306,-340.955907,0.00013699,2]
[419022414,1774769446315,-340.955907,0.00013699,2]
[419022415,1774769446324,-340.955907,0.00013699,2]
[419022416,1774769446334,-340.955907,0.00013699,2]
[419022417,1774769446343,-340.955907,0.00013699,2]
[419022418,1774769446353,-340.955907,0.00013699,2]
[419022419,1774769446363,-340.955909,0.00013699,2]
[419022420,1774769446372,-165.20736909,0.00013699,2]
[419022421,1774769446381,-500.0,0.00013699,2]
[419022422,1774769446391,-500.0,0.00013699,2]
[419022423,1774769446400,-500.0,0.00013699,2]
[419022424,1774769446409,-500.0,0.00013699,2]
[419022425,1774769446419,-500.0,0.00013699,2]
[419022426,1774769446428,-500.0,0.00013699,2]
[419022427,1774769446437,-500.0,0.00013699,2]
[419022428,1774769446447,-500.0,0.00013699,2]
[419022429,1774769446456,-500.0,0.00013699,2]
[419022430,1774769446465,-500.0,0.00013699,2]
[419022431,1774769446474,-303.4827321,0.00013699,2]
[419022432,1774769446483,-161.75757125,0.00013699,2]
[419022433,1774769446492,-500.0,0.00013699,2]
[419022434,1774769446501,-500.0,0.00013699,2]
[419022435,1774769446510,-500.93210986,0.00013699,2]
[419022436,1774769446520,-500.0,0.00013699,2]
[419022437,1774769446529,-500.0,0.00013699,2]
[419022438,1774769446538,-590.83132733,0.00013699,2]
[419022439,1774769446548,-500.0,0.00013699,2]
[419022440,1774769446557,-500.0,0.00013699,2]
[419022441,1774769446566,-500.0,0.00013699,2]
[419022442,1774769446576,-384.73655496,0.00013699,2]
[419022443,1774769446585,-501.76778141,0.00013699,2]
[419022444,1774769446595,-518.51040499,0.00013699,2]
[419022445,1774769446604,-160.27279954,0.00013699,2]
[419022446,1774769446614,-500.0,0.00013699,2]
[419022447,1774769446623,-500.0,0.00013699,2]
[419022448,1774769446634,-500.0,0.00013699,2]
[419022449,1774769446643,-500.0,0.00013699,2]
[419022450,1774769446652,-500.0,0.00013699,2]
[419022451,1774769446662,-164.64289673,0.00013699,2]
[419022452,1774769446671,-500.0,0.00013699,2]
[419022453,1774769446679,-501.88792393,0.00013699,2]
[419022454,1774769446689,-500.0,0.00013699,2]
[419022455,1774769446698,-337.48789903,0.00013699,2]
[419022456,1774769446707,-500.0,0.00013699,2]
[419022457,1774769446718,-163.45026092,0.00013699,2]
[419022458,1774769446727,-501.46955268,0.00013699,2]
[419022459,1774769446737,-166.65702548,0.00013699,2]
[419022460,1774769446747,-166.38309596,0.00013699,2]
[419022461,1774769446756,-500.0,0.00013699,2]
[419022462,1774769446766,-500.0,0.00013699,2]
[419022463,1774769446775,-500.79800767,0.00013699,2]
[419022464,1774769446785,-500.0,0.00013699,2]
[419022465,1774769446794,-500.0,0.00013699,2]
[419022466,1774769446804,-500.0,0.00013699,2]
[419022467,1774769446813,-164.20203145,0.00013699,2]
[419022468,1774769446823,-351.8619564,0.00013699,2]
[419022469,1774769446832,-500.0,0.00013699,2]
[419022470,1774769446842,-501.17803904,0.00013699,2]
[419022471,1774769446851,-500.11753077,0.00013699,2]
[419022472,1774769446860,-500.0,0.00013699,2]
[419022473,1774769446870,-501.36546682,0.00013699,2]
[419022474,1774769446879,-192.3169817,0.00013699,2]
[419022475,1774769446889,-500.0,0.00013699,2]
[419022476,1774769446899,-500.0,0.00013699,2]
[419022477,1774769446909,-163.64213874,0.00013699,2]
[419022478,1774769446918,-162.92469163,0.00013699,2]
[419022480,1774769446927,-500.0,0.00013699,2]
[419022481,1774769446936,-500.0,0.00013699,2]
[419022482,1774769446946,-500.0,0.00013699,2]
[419022483,1774769446956,-384.93996057,0.00013699,2]
[419022484,1774769446966,-215.52,0.000137,2]
[419022485,1774769446975,-165.5,0.000137,2]
[419022486,1774769446984,-191.11,0.000137,2]
[419022487,1774769446994,-1490.57,0.000137,2]
[419022488,1774769447003,-3677.79,0.000137,2]
[419022489,1774769447012,-3677.79,0.000137,2]
[419022490,1774769447021,-3677.79,0.000137,2]
[419022491,1774769447031,-3677.79,0.000137,2]
[419022492,1774769447040,-3677.79,0.000137,2]
[419022493,1774769447049,-587.0,0.00013707,2]
[419022494,1774769447059,-16942.93920207,0.00013712,2]
[419022495,1774769447068,-192.03,0.00013787,2]
[419022496,1774769447078,-307.02314579,0.000138,2]
[419022497,1774769447087,-666.0,0.00013806,2]
[419022498,1774769447097,-314.19591313,0.00013812,2]
[419022499,1774769447106,-433.0,0.00013822,2]
[419022500,1774769447116,-165.22963,0.00013825,2]
[419022501,1774769447126,-72532.6089738,0.00013832,2]
[419022502,1774769447136,-187.78006525,0.00013851,2]
[419022503,1774769447145,-15830.9840594,0.00013857,2]
[419022504,1774769447154,-1198.0885261,0.00013857,2]
[419022505,1774769447164,-37910.89333687,0.00013864,2]
[419022506,1774769447174,-158.70693169,0.00013864,2]
[419022507,1774769447239,-1016.9619706,0.00013864,2]
[419022508,1774769447248,-2500.0,0.00013864,2]
[419022509,1774769447258,-422.2211514,0.00013864,2]
[419022510,1774769447280,-2077.7788486,0.00013864,2]
[419022511,1774769447290,-647.88588496,0.00013864,2]
[419022512,1774769447300,-576.88580256,0.00013864,2]
[419022513,1774769447311,-844.36561413,0.00013864,2]
[419022514,1774769447378,-500.0,0.00011699,2]
[419022515,1774769447387,-151.0,0.00013698,2]
[419022516,1774769447398,-198.55400897,0.00013698,2]
[419022517,1774769447408,-1078.74858331,0.00013864,2]
[419022518,1774769447417,-790.63680729,0.000139,2]
[419022519,1774769447427,-2303.0,0.00013902,2]
[419022520,1774769447436,-731.81338678,0.00013908,2]
[419022521,1774769447447,-205.01,0.00013917,2]
[419022522,1774769447457,-150.0,0.00013973,2]
[419022523,1774769447467,-150.0,0.00013973,2]
[419022524,1774769447477,-150.0,0.00013973,2]
[419022525,1774769447486,-150.0,0.00013973,2]
[419022526,1774769447497,-200.0,0.00013983,2]
[419022527,1774769447507,-964.0,0.00013997,2]
[419022528,1774769447517,-513.0,0.00014,2]
[419022529,1774769447526,-11733.4473581,0.00014006,2]
[419022530,1774769447536,-2351.0,0.00014031,2]
[419022531,1774769447545,-2000.0,0.00014046,2]
[419022532,1774769447555,-677.2242101,0.0001406,2]
[419022533,1774769447564,-165.22963,0.00014071,2]
[419022534,1774769447574,-166.67,0.00014074,2]
[419022535,1774769447583,-2303.0,0.00014079,2]
[419022536,1774769447592,-18631.50884485,0.00014147,2]
[419022538,1774769931911,-1590.82426576,0.00010855,2]
[419022539,1774769935011,-10000.01,0.00010855,2]
[419022540,1774769944432,-4449.82573424,0.00010855,2]
[419022541,1774770497206,-527.07,0.00010605,2]
[419022542,1774770497236,-4020.44967245,0.0001062,2]
[419022543,1774770497268,-250.0,0.00010634,2]
[419022544,1774770497339,-404.9706551,0.00010662,2]
[419022545,1774770503297,-1595.0293449,0.00010662,2]
[419022546,1774770503327,-1600.0,0.00010705,2]
[419022547,1774770503355,-1500.0,0.00010839,2]
[419022548,1774770503383,-300.0,0.00010958,2]
[419022549,1774770503458,-9.9513102,0.00010958,2]
[419022550,1774770510614,-290.0486898,0.00010958,2]
[419022551,1774770631464,-500.0,0.0001072,2]
[419022552,1774770631473,-166.66,0.00010959,2]
[419022553,1774770631484,-150.0,0.00010959,2]
[419022554,1774770631493,-300.0,0.00011128,2]
[419022555,1774770631502,-598.69927846,0.00011128,2]
[419022556,1774770631515,-601.30072154,0.00011128,2]
[419022557,1774770631524,-308.8695174,0.00011128,2]
[419022558,1774770631535,-150.0,0.00011129,2]
[419022559,1774770631544,-604.54104151,0.00011129,2]
[419022560,1774770631567,-595.45895849,0.00011129,2]
[419022561,1774770631576,-150.0,0.0001113,2]
[419022562,1774770631586,-263.05159448,0.0001113,30]
[419022563,1774770631595,-150.99,0.0001113,2]
[419022564,1774770631605,-299.99,0.0001113,2]
[419022565,1774770631614,-499.99,0.0001113,2]
[419022566,1774770631623,-168.17018065,0.0001113,2]
[419022567,1774770631635,-419.32981935,0.0001113,2]
[419022568,1774770631645,-3857.25,0.0001113,2]
[419022569,1774770631654,-11844.47265772,0.0001113,2]
[419022570,1774770631669,-3204.56734228,0.0001113,2]
[419022571,1774770631679,-126.98674027,0.0001113,2]
[419022572,1774770631690,-9873.00325973,0.0001113,2]
[419022573,1774770631699,-166.66,0.0001113,2]
[419022574,1774770631709,-500.0,0.00011292,2]
[419022575,1774770631718,-500.0,0.00011292,2]
[419022576,1774770631729,-500.0,0.00011292,2]
[419022577,1774770631739,-500.0,0.00011292,2]
[419022578,1774770631748,-500.0,0.00011292,2]
[419022579,1774770631759,-500.0,0.00011292,2]
[419022580,1774770631771,-500.0,0.00011292,2]
[419022581,1774770631780,-548.89283393,0.00011292,2]
[419022582,1774770631790,-166.66,0.000113,2]
[419022583,1774770631800,-150.99,0.00011339,2]
[419022584,1774770631810,-150.0,0.00011341,2]
[419022585,1774770631819,-394.57739171,0.00011341,30]
[419022586,1774770631828,-150.0,0.00011341,2]
[419022587,1774770631839,-200.0,0.00011466,2]
[419022588,1774770631849,-151.0,0.00011466,2]
[419022589,1774770631859,-151.0,0.00011466,2]
[419022590,1774770631869,-151.0,0.00011466,2]
[419022591,1774770631879,-151.0,0.00011466,2]
[419022592,1774770631888,-151.0,0.00011466,2]
[419022593,1774770631897,-151.0,0.00011466,2]
[419022594,1774770631907,-151.0,0.00011466,2]
[419022595,1774770631916,-151.0,0.00011466,2]
[419022596,1774770631925,-178.50655676,0.00011466,2]
[419022597,1774770631935,-166.66,0.00011471,2]
[419022598,1774770631944,-4566.50840311,0.00011472,2]
[419022599,1774770631953,-3387.346,0.00011472,2]
[419022600,1774770631962,-310.368,0.00011472,2]
[419022601,1774770631971,-500.0,0.00011472,2]
[419022602,1774770631980,-799.74673551,0.00011473,2]
[419022603,1774770631991,-154.00708367,0.00011473,2]
[419022604,1774770632000,-22153.64477394,0.00011473,2]
[419022605,1774770632008,-22321.97275191,0.00011473,2]
[419022606,1774770632018,-264.00193136,0.00011473,2]
[419022607,1774770632027,-233.0,0.00011517,2]
[419022608,1774770632037,-151.0,0.0001157,2]
[419022609,1774770632045,-151.0,0.0001157,2]
[419022610,1774770632054,-500.0,0.00011572,2]
[419022611,1774770632063,-422.70059811,0.00011572,2]
[419022612,1774770632073,-500.0,0.00011572,2]
[419022613,1774770632082,-257.18218238,0.00011572,2]
[419022614,1774770632091,-500.0,0.00011572,2]
[419022615,1774770632100,-296.85426054,0.00011572,2]
[419022616,1774770632109,-158.958,0.00011572,2]
[419022617,1774770632118,-500.0,0.00011573,2]
[419022618,1774770632127,-500.0,0.00011573,2]
[419022619,1774770632136,-500.0,0.00011573,2]
[419022620,1774770632145,-500.0,0.00011573,2]
[419022621,1774770632155,-500.0,0.00011573,2]
[419022622,1774770632163,-500.0,0.00011573,2]
[419022623,1774770632173,-500.0,0.00011573,2]
[419022624,1774770632183,-500.0,0.00011573,2]
[419022625,1774770632193,-500.0,0.00011573,2]
[419022626,1774770632203,-500.0,0.00011573,2]
[419022627,1774770632213,-454.80496102,0.00011573,2]
[419022628,1774770632222,-409.82711305,0.00011573,2]
[419022629,1774770632233,-500.0,0.00011573,2]
[419022630,1774770632243,-500.0,0.00011573,2]
[419022631,1774770632253,-500.0,0.00011573,2]
[419022632,1774770632263,-734.96,0.00011573,2]
[419022633,1774770632273,-32228.3076,0.00011574,2]
[419022634,1774770632284,-1000.0,0.00011574,2]
[419022635,1774770632294,-307.0,0.00011597,2]
[419022636,1774770632304,-836.0,0.000116,2]
[419022637,1774770632313,-166.66,0.00011642,2]
[419022638,1774770632322,-930.24906118,0.00011666,2]
[419022639,1774770632334,-1254.41808677,0.00011666,2]
[419022644,1774770640454,-2815.33285205,0.00011666,2]
[419022645,1774770640464,-325.38170273,0.00011666,2]
[419022646,1774770640473,-250.0,0.00011666,2]
[419022647,1774770640482,-151.0,0.00011678,2]
[419022648,1774770640492,-151.0,0.00011678,2]
[419022649,1774770640501,-151.0,0.00011679,2]
[419022650,1774770640511,-151.36,0.00011683,2]
[419022651,1774770640521,-931.16015491,0.000117,4]
[419022652,1774770640533,-1768.83984509,0.000117,4]
[419022653,1774770640542,-434.0,0.00011773,2]
[419022654,1774770640552,-1780.65435461,0.000118,4]
[419022655,1774770640567,-3619.34564539,0.000118,4]
[419022656,1774770640577,-166.66,0.00011813,2]
[419022657,1774770640587,-252.16489194,0.00011847,2]
[419022658,1774770640598,-482.79510806,0.00011847,2]
[419022659,1774770640608,-635.19657638,0.000119,4]
[419022660,1774770640620,-7464.80342362,0.000119,4]
[419022661,1774770640629,-2852.19657638,0.00011965,2]
[419022664,1774770642750,-2806.62188583,0.00011965,2]
[419022665,1774770642831,-7906.75379404,0.00011965,2]
[419022666,1774770642843,-2112.68772881,0.00011965,2]
[419022667,1774770642854,-6475.38478881,0.00011965,2]
[419022668,1774770642864,-0.65954742,0.00011965,2]
[419022669,1774770642876,-993.34152341,0.00011965,2]
[419022670,1774770642887,-501.61460773,0.00011965,2]
[419022671,1774770642898,-539.93551002,0.00011965,2]
[419022672,1774770642913,-605.91046908,0.00011965,2]
[419022673,1774770642924,-19680.51109418,0.00011965,2]
[419022674,1774770642933,-2000.0,0.00011995,2]
[419022675,1774770642943,-200.0,0.00012014,2]
[419022676,1774770642952,-420.0,0.00012042,2]
[419022677,1774770642962,-1600.0,0.00012044,2]
[419022678,1774770642971,-189.33,0.00012051,2]
[419022679,1774770642980,-150.0,0.000121,2]
[419022681,1774770642989,-553.39889791,0.00012121,2]
[419022683,1774770642999,-1000.0,0.00012121,2]
[419022685,1774770643009,-500.69972798,0.00012121,2]
[419022687,1774770643018,-1003.28384066,0.00012121,2]
[419022689,1774770643027,-1000.0,0.00012121,2]
[419022691,1774770643037,-1000.0,0.00012121,2]
[419022693,1774770643047,-1000.0,0.00012121,2]
[419022695,1774770643058,-1000.0,0.00012121,2]
[419022697,1774770643068,-1000.0,0.00012121,2]
[419022699,1774770643077,-1000.0,0.00012121,2]
[419022701,1774770643086,-1000.0,0.00012121,2]
[419022703,1774770643097,-734.96,0.00012121,2]
[419022705,1774770643106,-9552.16786547,0.00012137,2]
[419022707,1774770643116,-500.0,0.00012137,2]
[419022709,1774770643126,-500.0,0.00012137,2]
[419022711,1774770643136,-500.0,0.00012137,2]
[419022713,1774770643146,-500.0,0.00012137,2]
[419022715,1774770643156,-500.0,0.00012137,2]
[419022717,1774770643166,-500.0,0.00012137,2]
[419022719,1774770643176,-500.0,0.00012137,2]
[419022721,1774770643186,-500.0,0.00012137,2]
[419022723,1774770643196,-500.0,0.00012137,2]
[419022725,1774770643206,-500.0,0.00012137,2]
[419022727,1774770643216,-500.0,0.00012137,2]
[419022728,1774770643226,-500.0,0.00012137,2]
[419022729,1774770643236,-500.0,0.00012137,2]
[419022730,1774770643247,-500.0,0.00012137,2]
[419022731,1774770643257,-500.0,0.00012137,2]
[419022732,1774770643267,-500.0,0.00012137,2]
[419022733,1774770643276,-500.0,0.00012137,2]
[419022734,1774770643286,-500.0,0.00012137,2]
[419022736,1774770643295,-500.0,0.00012137,2]
[419022737,1774770643304,-500.0,0.00012137,2]
[419022739,1774770643313,-500.0,0.00012137,2]
[419022740,1774770643323,-500.0,0.00012137,2]
[419022741,1774770643332,-500.0,0.00012137,2]
[419022742,1774770643341,-151.0,0.00012137,2]
[419022743,1774770643351,-174.61919141,0.00012137,2]
[419022744,1774770643361,-423.43045451,0.00012137,2]
[419022745,1774770643372,-250.0,0.00012137,2]
[419022746,1774770643382,-250.0,0.00012137,2]
[419022748,1774770643392,-250.0,0.00012137,2]
[419022749,1774770643401,-250.0,0.00012137,2]
[419022751,1774770643410,-151.04919521,0.00012137,2]
[419022752,1774770643419,-250.0,0.00012137,2]
[419022753,1774770643429,-250.0,0.00012137,2]
[419022754,1774770643439,-250.0,0.00012137,2]
[419022755,1774770643449,-250.0,0.00012137,2]
[419022756,1774770643459,-250.0,0.00012137,2]
[419022757,1774770643468,-250.0,0.00012137,2]
[419022758,1774770643478,-250.0,0.00012137,2]
[419022759,1774770643488,-751.86902123,0.00012137,2]
[419022760,1774770643497,-262.90206542,0.00012137,2]
[419022761,1774770643506,-255.0,0.00012175,2]
[419022762,1774770643515,-9905.5980765,0.00012192,2]
[419022763,1774770643525,-500.0,0.00012192,2]
[419022764,1774770643534,-151.0,0.00012192,2]
[419022765,1774770643543,-272.62944185,0.00012192,2]
[419022766,1774770643552,-799.74673549,0.00012211,2]
[419022767,1774770643562,-385.0,0.00012227,2]
[419022768,1774770643571,-1680.0,0.00012241,2]
[419022769,1774770643580,-500.0,0.00012247,2]
[419022770,1774770643589,-10272.10520533,0.00012247,2]
[419022771,1774770643599,-151.0,0.00012247,2]
[419022772,1774770643608,-282.71673119,0.00012247,2]
[419022773,1774770643617,-2286.33608665,0.00012257,2]
[419022774,1774770643627,-500.0,0.00012302,2]
[419022775,1774770643636,-10652.17309792,0.00012302,2]
[419022776,1774770643646,-151.0,0.00012302,2]
[419022777,1774770643656,-293.17725025,0.00012302,2]
[419022778,1774770643665,-2286.33608665,0.00012312,2]
[419022779,1774770643675,-500.0,0.00012357,2]
[419022780,1774770643684,-11046.30350255,0.00012357,2]
[419022781,1774770643693,-151.0,0.00012357,2]
[419022782,1774770643702,-304.02480851,0.00012357,2]
[419022783,1774770643712,-734.96,0.00012395,2]
[419022784,1774770643722,-500.0,0.00012412,2]
[419022785,1774770643731,-11455.01673214,0.00012412,2]
[419022786,1774770643740,-151.0,0.00012412,2]
[419022787,1774770643750,-315.27372642,0.00012412,2]
[419022788,1774770643759,-22153.64477387,0.00012457,2]
[419022789,1774770643769,-22321.97275184,0.00012457,2]
[419022790,1774770643779,-11878.85235123,0.00012467,2]
[419022791,1774770643788,-500.0,0.00012467,2]
[419022792,1774770643798,-151.0,0.00012467,2]
[419022793,1774770643807,-326.9388543,0.00012467,2]
[419022794,1774770643817,-500.0,0.00012522,2]
[419022795,1774770643827,-12318.36988823,0.00012522,2]
[419022796,1774770643837,-151.0,0.00012522,2]
[419022797,1774770643847,-339.03559191,0.00012522,2]
[419022798,1774770643856,-200.0,0.00012562,2]
[419022799,1774770643866,-500.0,0.00012577,2]
[419022800,1774770643876,-12774.14957409,0.00012577,2]
[419022801,1774770643886,-151.0,0.00012577,2]
[419022802,1774770643896,-500.0,0.0001263,2]
[419022803,1774770643906,-500.0,0.00012632,2]
[419022804,1774770643915,-6819.19983046,0.00012632,2]
[419022805,1774770643924,-151.0,0.00012632,2]
[419022806,1774770643934,-734.96,0.00012668,2]
[419022807,1774770643944,-1000.0,0.00012668,2]
[419022808,1774770643953,-1500.0,0.00012668,2]
[419022809,1774770643964,-1500.0,0.00012668,2]
[419022810,1774770643972,-500.0,0.00012668,2]
[419022811,1774770643982,-1500.0,0.00012668,2]
[419022812,1774770643991,-1500.0,0.00012668,2]
[419022813,1774770644001,-1500.0,0.00012668,2]
[419022814,1774770644011,-1500.0,0.00012668,2]
[419022815,1774770644021,-181.08010149,0.00012685,2]
[419022816,1774770644030,-500.0,0.00012687,2]
[419022817,1774770644040,-151.0,0.00012687,2]
[419022818,1774770644049,-155.0,0.00012729,2]
[419022819,1774770644059,-2286.33608664,0.00012777,2]
[419022820,1774770644069,-4386.0,0.00012784,5]
[419022821,1774770644078,-3514.0,0.00012784,5]
[419022822,1774770644088,-2286.33608664,0.00012825,2]
[419022823,1774770644097,-503.47318171,0.00012842,2]
[419022824,1774770644107,-734.96,0.00012942,2]
[419022825,1774770644116,-799.74673549,0.00012949,2]
[419022826,1774770644125,-22153.64477387,0.00012949,2]
[419022827,1774770644134,-22321.97275184,0.00012949,2]
[419022828,1774770644144,-200.0,0.0001311,2]
[419022829,1774770644153,-402.062657,0.00013172,2]
[419022830,1774770644163,-2620.684041,0.00013172,2]
[419022831,1774770644172,-448.882084,0.00013172,2]
[419022832,1774770644183,-734.96,0.00013216,2]
[419022833,1774770644192,-2000.0,0.00013216,2]
[419022834,1774770644202,-2000.0,0.00013216,2]
[419022835,1774770644212,-2000.0,0.00013216,2]
[419022836,1774770644221,-1000.0,0.00013216,2]
[419022837,1774770644231,-2000.0,0.00013216,2]
[419022838,1774770644241,-1000.0,0.00013216,2]
[419022839,1774770644252,-187.78006525,0.00013233,2]
[419022840,1774770644261,-193.0,0.00013233,2]
[419022841,1774770644271,-2286.33608664,0.00013298,2]
[419022842,1774770644282,-2000.0,0.000133,2]
[419022843,1774770644292,-433.0,0.00013321,2]
[419022844,1774770644301,-2000.0,0.00013328,2]
[419022845,1774770644310,-2286.33608664,0.00013337,2]
[419022846,1774770644320,-1600.0,0.00013382,2]
[419022847,1774770644329,-205.180906,0.00013383,2]
[419022848,1774770644338,-3240.0,0.00013425,2]
[419022849,1774770644447,-22153.64477387,0.00013441,2]
[419022850,1774770644457,-22321.97275184,0.00013441,2]
[419022851,1774770644466,-2351.0,0.00013465,2]
[419022852,1774770644475,-734.96222207,0.0001349,2]
[419022853,1774770644485,-267.3296848,0.00013499,2]
[419022854,1774770644496,-200.0,0.000135,2]
[419022855,1774770644507,-429.29760846,0.00013553,2]
[419022856,1774770644516,-221.595381,0.00013583,2]
[419022857,1774770644526,-216.573766,0.00013583,2]
[419022858,1774770644536,-210.488213,0.00013583,2]
[419022859,1774770644545,-2000.0,0.000136,2]
[419022860,1774770644555,-15409.8416132,0.00013656,2]
[419022861,1774770644564,-5541.5665031,0.00013656,2]
[419022862,1774770644573,-799.74673549,0.00013687,2]
[419022863,1774770644583,-150.0,0.00013699,2]
[419022864,1774770644592,-150.0,0.00013699,2]
[419022865,1774770644601,-1557.71,0.00013699,2]
[419022866,1774770644611,-155.85026359,0.00013699,2]
[419022867,1774770644620,-180.02018599,0.000137,2]
[419022868,1774770644629,-215.52,0.000137,2]
[419022869,1774770644639,-165.5,0.000137,2]
[419022870,1774770644648,-2000.0,0.000137,2]
[419022871,1774770644657,-2509.58099597,0.00013764,2]
[419022872,1774770644667,-2245.04491428,0.00013764,2]
[419022873,1774770644676,-2500.0,0.00013764,2]
[419022874,1774770644687,-2500.0,0.00013764,2]
[419022875,1774770644695,-194.72792766,0.00013781,2]
[419022876,1774770644704,-2000.0,0.000138,2]
[419022877,1774770644714,-3141.0,0.000138,2]
[419022878,1774770644723,-1523.0,0.00013844,2]
[419022879,1774770644733,-1523.0,0.00013844,2]
[419022880,1774770644742,-161.81500828,0.00013844,2]
[419022881,1774770644753,-1523.0,0.00013844,2]
[419022882,1774770644763,-151.0,0.00013844,2]
[419022883,1774770644773,-1523.0,0.00013844,2]
[419022884,1774770644783,-151.0,0.00013844,2]
[419022885,1774770644793,-1523.0,0.00013844,2]
[419022886,1774770644803,-151.0,0.00013844,2]
[419022887,1774770644812,-1523.0,0.00013844,2]
[419022888,1774770644823,-151.0,0.00013844,2]
[419022889,1774770644833,-1523.0,0.00013844,2]
[419022890,1774770644842,-151.0,0.00013844,2]
[419022891,1774770644852,-1523.0,0.00013844,2]
[419022892,1774770644863,-151.0,0.00013844,2]
[419022893,1774770644873,-1523.0,0.00013844,2]
[419022894,1774770644883,-151.0,0.00013844,2]
[419022895,1774770644893,-1523.0,0.00013844,2]
[419022896,1774770644902,-151.0,0.00013844,2]
[419022897,1774770644912,-1523.0,0.00013844,2]
[419022898,1774770644922,-151.0,0.00013844,2]
[419022899,1774770644931,-1523.0,0.00013844,2]
[419022900,1774770644940,-151.0,0.00013844,2]
[419022901,1774770644950,-1523.0,0.00013844,2]
[419022902,1774770644959,-151.0,0.00013844,2]
[419022903,1774770644969,-1523.0,0.00013844,2]
[419022904,1774770644978,-228.45367885,0.00013844,2]
[419022905,1774770644988,-1523.0,0.00013844,2]
[419022906,1774770644997,-1523.0,0.00013844,2]
[419022907,1774770645007,-1523.0,0.00013844,2]
[419022908,1774770645018,-1523.0,0.00013844,2]
[419022909,1774770645029,-1523.0,0.00013844,2]
[419022910,1774770645038,-1523.0,0.00013844,2]
[419022911,1774770645048,-1523.0,0.00013844,2]
[419022912,1774770645057,-1523.0,0.00013844,2]
[419022913,1774770645067,-1523.0,0.00013844,2]
[419022914,1774770645076,-1523.0,0.00013844,2]
[419022915,1774770645086,-1523.0,0.00013844,2]
[419022916,1774770645096,-1523.0,0.00013844,2]
[419022917,1774770645105,-1523.0,0.00013844,2]
[419022918,1774770645116,-1523.0,0.00013844,2]
[419022919,1774770645127,-153.0,0.00013844,2]
[419022920,1774770645137,-154.87147006,0.00013844,2]
[419022921,1774770645147,-2286.33608664,0.0001385,2]
[419022922,1774770645156,-557.79798238,0.00013859,2]
[419022923,1774770645165,-269.4579724,0.00013859,2]
[419022924,1774770645175,-645.89041868,0.00013859,2]